[Event "Titled Tuesday Blitz September 27 Late 2022"]
[White "Koellner, Ruben Gideon"]
[Black "Bortnyk, Mykola"]
[WhiteFideId "12993093"]
[BlackFideId "14120836"]
[WhiteElo "2286"]
[BlackElo "2582"]
[Result "0-1"]
[Round "02"]
[TimeControl "180+1"]
[Date "2022.09.27"]
[WhiteClock "0:00:03"]
[BlackClock "0:01:13"]

1. d4 {[%clk 0:02:59]}  Nf6 {[%clk 0:02:58]} 2. Bg5 {[%clk 0:02:57]}  d5 {[%clk 0:02:55]} 3. e3 {[%clk 0:02:57]}  Bf5 {[%clk 0:02:53]} 4. Bxf6 {[%clk 0:02:55]}  gxf6 {[%clk 0:02:53]} 5. c4 {[%clk 0:02:55]}  c6 {[%clk 0:02:51]} 6. Nc3 {[%clk 0:02:55]}  e6 {[%clk 0:02:50]} 7. Bd3 {[%clk 0:02:54]}  Bxd3 {[%clk 0:02:49]} 8. Qxd3 {[%clk 0:02:54]}  Qb6 {[%clk 0:02:43]} 9. Nge2 {[%clk 0:02:44]}  Qxb2 {[%clk 0:02:30]} 10. Rb1 {[%clk 0:02:39]}  Qa3 {[%clk 0:02:30]} 11. cxd5 {[%clk 0:01:54]}  cxd5 {[%clk 0:02:08]} 12. Rxb7 {[%clk 0:01:51]}  Nd7 {[%clk 0:02:06]} 13. Qb5 {[%clk 0:01:44]}  Qd6 {[%clk 0:02:01]} 14. O-O {[%clk 0:01:39]}  Be7 {[%clk 0:01:56]} 15. Qa4 {[%clk 0:01:17]}  Rc8 {[%clk 0:01:32]} 16. Nb5 {[%clk 0:01:02]}  Qc6 {[%clk 0:01:32]} 17. Qxa7 {[%clk 0:00:51]}  O-O {[%clk 0:01:29]} 18. g3 {[%clk 0:00:16]}  Ra8 {[%clk 0:01:29]} 19. Rxd7 {[%clk 0:00:03]}  Rxa7 {[%clk 0:01:29]} 20. Rxa7 {[%clk 0:00:03]}  Qxb5 {[%clk 0:01:30]} 21. Nf4 {[%clk 0:00:03]}  Re8 {[%clk 0:01:18]} 22. Nh5 {[%clk 0:00:03]}  Qe2 {[%clk 0:01:16]} 23. Nf4 {[%clk 0:00:03]}  Qf3 {[%clk 0:01:14]} 24. Rc1 {[%clk 0:00:04]}  Bd6 {[%clk 0:01:14]} 25. Ra6 {[%clk 0:00:03]}  Bxf4 {[%clk 0:01:14]} 26. gxf4 {[%clk 0:00:04]}  Rb8 {[%clk 0:01:13]} 27. Rac6 {[%clk 0:00:01]}  Rb2 {[%clk 0:01:12]} 28. Rc8+ {[%clk 0:00:01]}  Kg7 {[%clk 0:01:13]} 29. R8c2 {[%clk 0:00:02]}  Rxc2 {[%clk 0:01:13]} 30. Rxc2 {[%clk 0:00:03]}  Qd1+ {[%clk 0:01:13]} 0-1


[Site "https://www.chess.com"]

[Event "Titled Tuesday Blitz September 27 Late 2022"]
[White "Kravtsiv, Martyn"]
[Black "Badelka, Olga"]
[WhiteFideId "14113147"]
[BlackFideId "13509926"]
[WhiteElo "2694"]
[BlackElo "2165"]
[Result "1-0"]
[Round "02"]
[TimeControl "180+1"]
[Date "2022.09.28"]
[WhiteClock "0:00:03"]
[BlackClock "0:00:03"]

1. e4 {[%clk 0:03:00]}  e5 {[%clk 0:02:59]} 2. Nf3 {[%clk 0:03:01]}  Nc6 {[%clk 0:02:59]} 3. Nc3 {[%clk 0:03:01]}  Nf6 {[%clk 0:02:58]} 4. a4 {[%clk 0:03:01]}  d5 {[%clk 0:02:44]} 5. exd5 {[%clk 0:02:59]}  Nxd5 {[%clk 0:02:44]} 6. Bb5 {[%clk 0:02:59]}  Nxc3 {[%clk 0:02:41]} 7. bxc3 {[%clk 0:03:00]}  Bd6 {[%clk 0:02:35]} 8. O-O {[%clk 0:03:00]}  O-O {[%clk 0:02:34]} 9. d4 {[%clk 0:02:59]}  exd4 {[%clk 0:02:14]} 10. cxd4 {[%clk 0:03:00]}  Bg4 {[%clk 0:02:06]} 11. c3 {[%clk 0:02:59]}  Qf6 {[%clk 0:01:59]} 12. a5 {[%clk 0:02:58]}  a6 {[%clk 0:01:56]} 13. Bd3 {[%clk 0:02:57]}  Bf5 {[%clk 0:01:22]} 14. Be3 {[%clk 0:02:13]}  Bxd3 {[%clk 0:01:18]} 15. Qxd3 {[%clk 0:02:12]}  Rab8 {[%clk 0:01:05]} 16. h3 {[%clk 0:02:07]}  h6 {[%clk 0:01:05]} 17. c4 {[%clk 0:02:06]}  Rfd8 {[%clk 0:01:04]} 18. Qb3 {[%clk 0:01:51]}  Bf4 {[%clk 0:00:57]} 19. Rfe1 {[%clk 0:01:48]}  Qf5 {[%clk 0:00:21]} 20. Qc3 {[%clk 0:01:27]}  Bd6 {[%clk 0:00:17]} 21. Reb1 {[%clk 0:01:16]}  Be7 {[%clk 0:00:15]} 22. d5 {[%clk 0:00:58]}  Bf6 {[%clk 0:00:14]} 23. Nd4 {[%clk 0:00:58]}  Nxd4 {[%clk 0:00:14]} 24. Bxd4 {[%clk 0:00:58]}  Bxd4 {[%clk 0:00:04]} 25. Qxd4 {[%clk 0:00:59]}  c6 {[%clk 0:00:02]} 26. Rd1 {[%clk 0:00:54]}  cxd5 {[%clk 0:00:02]} 27. cxd5 {[%clk 0:00:54]}  Rd6 {[%clk 0:00:03]} 28. Rac1 {[%clk 0:00:44]}  Rbd8 {[%clk 0:00:03]} 29. Rc5 {[%clk 0:00:45]}  Qf6 {[%clk 0:00:02]} 30. Qe4 {[%clk 0:00:37]}  Kf8 {[%clk 0:00:02]} 31. Rc7 {[%clk 0:00:34]}  Qg6 {[%clk 0:00:02]} 32. Qb4 {[%clk 0:00:29]}  Qf6 {[%clk 0:00:01]} 33. Rxb7 {[%clk 0:00:27]}  Kg8 {[%clk 0:00:02]} 34. Rb6 {[%clk 0:00:23]}  Qe5 {[%clk 0:00:02]} 35. Qc4 {[%clk 0:00:20]}  Rxd5 {[%clk 0:00:01]} 36. Rxd5 {[%clk 0:00:08]}  Rxd5 {[%clk 0:00:02]} 37. g3 {[%clk 0:00:08]}  Rd1+ {[%clk 0:00:02]} 38. Kg2 {[%clk 0:00:08]}  Rd2 {[%clk 0:00:02]} 39. Rxa6 {[%clk 0:00:05]}  Re2 {[%clk 0:00:02]} 40. Ra8+ {[%clk 0:00:05]}  Kh7 {[%clk 0:00:02]} 41. Qd3+ {[%clk 0:00:05]}  g6 {[%clk 0:00:02]} 42. Qf3 {[%clk 0:00:05]}  Ra2 {[%clk 0:00:02]} 43. Qxf7+ {[%clk 0:00:03]}  Qg7 {[%clk 0:00:03]} 44. Qxa2 {[%clk 0:00:03]} 1-0


[Site "https://www.chess.com"]

[Event "Titled Tuesday Blitz September 27 Late 2022"]
[White "Lazavik, Denis"]
[Black "Levitskiy, Andrey"]
[WhiteFideId "13515110"]
[BlackFideId "14132885"]
[WhiteElo "2437"]
[BlackElo "2303"]
[Result "1-0"]
[Round "02"]
[TimeControl "180+1"]
[Date "2022.09.27"]
[WhiteClock "0:00:43"]
[BlackClock "0:00:01"]

1. d4 {[%clk 0:03:00]}  Nf6 {[%clk 0:02:59]} 2. c4 {[%clk 0:03:01]}  e6 {[%clk 0:03:00]} 3. Nc3 {[%clk 0:03:01]}  Bb4 {[%clk 0:03:00]} 4. e3 {[%clk 0:03:01]}  O-O {[%clk 0:03:00]} 5. Bd3 {[%clk 0:03:01]}  d5 {[%clk 0:03:00]} 6. cxd5 {[%clk 0:03:01]}  exd5 {[%clk 0:02:58]} 7. a3 {[%clk 0:03:01]}  Be7 {[%clk 0:02:47]} 8. Nge2 {[%clk 0:02:57]}  Re8 {[%clk 0:02:48]} 9. O-O {[%clk 0:02:53]}  c6 {[%clk 0:02:48]} 10. f3 {[%clk 0:02:51]}  c5 {[%clk 0:02:46]} 11. Kh1 {[%clk 0:02:34]}  Nc6 {[%clk 0:02:46]} 12. Bd2 {[%clk 0:02:34]}  Bf8 {[%clk 0:02:27]} 13. Rc1 {[%clk 0:02:30]}  b6 {[%clk 0:02:22]} 14. dxc5 {[%clk 0:02:00]}  bxc5 {[%clk 0:02:16]} 15. Na4 {[%clk 0:02:00]}  c4 {[%clk 0:02:01]} 16. Bb1 {[%clk 0:01:59]}  Rb8 {[%clk 0:01:41]} 17. Nf4 {[%clk 0:01:47]}  Ne5 {[%clk 0:01:31]} 18. Bc3 {[%clk 0:01:45]}  Bb7 {[%clk 0:01:09]} 19. Bd4 {[%clk 0:01:43]}  Qa5 {[%clk 0:00:59]} 20. Nc3 {[%clk 0:01:39]}  Bc5 {[%clk 0:00:54]} 21. Qd2 {[%clk 0:01:26]}  Bxd4 {[%clk 0:00:49]} 22. exd4 {[%clk 0:01:23]}  Ng6 {[%clk 0:00:48]} 23. Bxg6 {[%clk 0:01:12]}  hxg6 {[%clk 0:00:48]} 24. Rfe1 {[%clk 0:01:12]}  Bc6 {[%clk 0:00:47]} 25. Re5 {[%clk 0:01:05]}  Qb6 {[%clk 0:00:41]} 26. Rb1 {[%clk 0:00:56]}  Qc7 {[%clk 0:00:23]} 27. Rbe1 {[%clk 0:00:54]}  Red8 {[%clk 0:00:13]} 28. h4 {[%clk 0:00:54]}  Qb6 {[%clk 0:00:14]} 29. R1e2 {[%clk 0:00:53]}  Rb7 {[%clk 0:00:12]} 30. h5 {[%clk 0:00:48]}  gxh5 {[%clk 0:00:13]} 31. Nxh5 {[%clk 0:00:48]}  Nxh5 {[%clk 0:00:13]} 32. Rxh5 {[%clk 0:00:49]}  Rd6 {[%clk 0:00:10]} 33. Qf4 {[%clk 0:00:48]}  Qd8 {[%clk 0:00:09]} 34. Qh2 {[%clk 0:00:43]}  Rh6 {[%clk 0:00:04]} 35. Rxh6 {[%clk 0:00:43]}  gxh6 {[%clk 0:00:05]} 36. Qxh6 {[%clk 0:00:44]}  Qc8 {[%clk 0:00:01]} 37. Re5 {[%clk 0:00:43]} 1-0


[Site "https://www.chess.com"]

[Event "Titled Tuesday Blitz September 27 Late 2022"]
[White "Leitao, Rafael"]
[Black "Federzoni, Enzo"]
[WhiteFideId "2101246"]
[BlackFideId "2173301"]
[WhiteElo "2609"]
[BlackElo "1949"]
[Result "1/2-1/2"]
[Round "02"]
[TimeControl "180+1"]
[Date "2022.09.28"]
[WhiteClock "0:00:11"]
[BlackClock "0:00:06"]

1. c4 {[%clk 0:03:00]}  g6 {[%clk 0:02:57]} 2. g3 {[%clk 0:03:00]}  Bg7 {[%clk 0:02:56]} 3. Bg2 {[%clk 0:03:00]}  c5 {[%clk 0:02:56]} 4. Nf3 {[%clk 0:02:59]}  Nc6 {[%clk 0:02:57]} 5. Nc3 {[%clk 0:03:00]}  e6 {[%clk 0:02:57]} 6. O-O {[%clk 0:02:54]}  Nge7 {[%clk 0:02:56]} 7. d3 {[%clk 0:02:49]}  O-O {[%clk 0:02:53]} 8. a3 {[%clk 0:02:45]}  d5 {[%clk 0:02:40]} 9. Rb1 {[%clk 0:02:45]}  b6 {[%clk 0:02:11]} 10. Bd2 {[%clk 0:02:41]}  Bb7 {[%clk 0:02:11]} 11. b4 {[%clk 0:02:37]}  Qd7 {[%clk 0:02:05]} 12. bxc5 {[%clk 0:02:32]}  bxc5 {[%clk 0:02:01]} 13. Na4 {[%clk 0:02:30]}  Rab8 {[%clk 0:01:43]} 14. Nxc5 {[%clk 0:02:26]}  Qc7 {[%clk 0:01:43]} 15. cxd5 {[%clk 0:02:18]}  Nxd5 {[%clk 0:01:43]} 16. Nxb7 {[%clk 0:01:37]}  Rxb7 {[%clk 0:01:44]} 17. Qc2 {[%clk 0:01:29]}  Rfb8 {[%clk 0:01:34]} 18. Rfc1 {[%clk 0:01:24]}  Rxb1 {[%clk 0:01:31]} 19. Rxb1 {[%clk 0:01:23]}  Rxb1+ {[%clk 0:01:27]} 20. Qxb1 {[%clk 0:01:24]}  Qb6 {[%clk 0:01:24]} 21. Qxb6 {[%clk 0:01:22]}  axb6 {[%clk 0:01:25]} 22. Ne1 {[%clk 0:01:08]}  Nd4 {[%clk 0:01:22]} 23. Bxd5 {[%clk 0:01:04]}  exd5 {[%clk 0:01:23]} 24. Kf1 {[%clk 0:01:01]}  b5 {[%clk 0:01:16]} 25. Bb4 {[%clk 0:00:54]}  f5 {[%clk 0:01:11]} 26. e3 {[%clk 0:00:54]}  Nc6 {[%clk 0:01:10]} 27. Nc2 {[%clk 0:00:49]}  Kf7 {[%clk 0:01:08]} 28. Ke2 {[%clk 0:00:49]}  Ke6 {[%clk 0:01:06]} 29. Bc5 {[%clk 0:00:48]}  h5 {[%clk 0:01:04]} 30. h4 {[%clk 0:00:48]}  Bf6 {[%clk 0:01:01]} 31. f4 {[%clk 0:00:47]}  Bd8 {[%clk 0:00:56]} 32. Kf3 {[%clk 0:00:42]}  Ba5 {[%clk 0:00:54]} 33. Bb4 {[%clk 0:00:37]}  Bb6 {[%clk 0:00:49]} 34. e4 {[%clk 0:00:35]}  Nd4+ {[%clk 0:00:41]} 35. Nxd4+ {[%clk 0:00:35]}  Bxd4 {[%clk 0:00:42]} 36. Bd2 {[%clk 0:00:29]}  Bc5 {[%clk 0:00:38]} 37. Bc1 {[%clk 0:00:28]}  Bd4 {[%clk 0:00:31]} 38. Be3 {[%clk 0:00:25]}  Bb2 {[%clk 0:00:30]} 39. Bc5 {[%clk 0:00:25]}  Bc3 {[%clk 0:00:25]} 40. e5 {[%clk 0:00:25]}  Ba5 {[%clk 0:00:24]} 41. Ke2 {[%clk 0:00:25]}  Bc3 {[%clk 0:00:23]} 42. Kd1 {[%clk 0:00:24]}  Ba5 {[%clk 0:00:23]} 43. Bf2 {[%clk 0:00:24]}  Bc3 {[%clk 0:00:20]} 44. Be1 {[%clk 0:00:23]}  Bd4 {[%clk 0:00:19]} 45. Kc2 {[%clk 0:00:23]}  Kd7 {[%clk 0:00:17]} 46. Kb3 {[%clk 0:00:22]}  Bc5 {[%clk 0:00:16]} 47. d4 {[%clk 0:00:19]}  Be7 {[%clk 0:00:15]} 48. Bb4 {[%clk 0:00:18]}  Bd8 {[%clk 0:00:15]} 49. Bd6 {[%clk 0:00:17]}  Ba5 {[%clk 0:00:15]} 50. Bb4 {[%clk 0:00:15]}  Bb6 {[%clk 0:00:15]} 51. Bd2 {[%clk 0:00:15]}  Bxd4 {[%clk 0:00:14]} 52. Kb4 {[%clk 0:00:15]}  Bf2 {[%clk 0:00:14]} 53. Kxb5 {[%clk 0:00:14]}  Bxg3 {[%clk 0:00:14]} 54. a4 {[%clk 0:00:14]}  Bxh4 {[%clk 0:00:14]} 55. Be3 {[%clk 0:00:14]}  Be1 {[%clk 0:00:13]} 56. a5 {[%clk 0:00:14]}  Bxa5 {[%clk 0:00:10]} 57. Kxa5 {[%clk 0:00:14]}  Ke6 {[%clk 0:00:09]} 58. Kb5 {[%clk 0:00:13]}  h4 {[%clk 0:00:07]} 59. Kc5 {[%clk 0:00:12]}  g5 {[%clk 0:00:08]} 60. fxg5 {[%clk 0:00:11]}  Kxe5 {[%clk 0:00:06]} 61. Bd4+ {[%clk 0:00:11]}  Ke6 {[%clk 0:00:03]} 62. Be3 {[%clk 0:00:11]}  Kf7 {[%clk 0:00:03]} 63. Bf4 {[%clk 0:00:11]}  Kg6 {[%clk 0:00:03]} 64. Kd4 {[%clk 0:00:11]}  h3 {[%clk 0:00:02]} 65. Ke3 {[%clk 0:00:09]}  h2 {[%clk 0:00:03]} 66. Bxh2 {[%clk 0:00:10]}  Kxg5 {[%clk 0:00:04]} 67. Be5 {[%clk 0:00:10]}  f4+ {[%clk 0:00:05]} 68. Bxf4+ {[%clk 0:00:10]}  Kf5 {[%clk 0:00:05]} 69. Bc7 {[%clk 0:00:11]}  d4+ {[%clk 0:00:06]} 70. Kxd4 {[%clk 0:00:11]} 1/2-1/2


[Site "https://www.chess.com"]

[Event "Titled Tuesday Blitz September 27 Late 2022"]
[White "Lenderman, Aleksandr"]
[Black "Navarrete Mendez, Gonzalo Alberto"]
[WhiteFideId "2021285"]
[BlackFideId "5106850"]
[WhiteElo "2607"]
[BlackElo "2261"]
[Result "0-1"]
[Round "02"]
[TimeControl "180+1"]
[Date "2022.09.27"]
[WhiteClock "0:02:12"]
[BlackClock "0:01:28"]

1. e4 {[%clk 0:03:00]}  e5 {[%clk 0:02:59]} 2. Nf3 {[%clk 0:03:00]}  Nc6 {[%clk 0:02:58]} 3. Nc3 {[%clk 0:03:00]}  Nf6 {[%clk 0:02:58]} 4. d4 {[%clk 0:03:01]}  exd4 {[%clk 0:02:59]} 5. Nxd4 {[%clk 0:03:01]}  Bb4 {[%clk 0:02:59]} 6. Nxc6 {[%clk 0:03:01]}  bxc6 {[%clk 0:03:00]} 7. Bd3 {[%clk 0:03:01]}  d5 {[%clk 0:03:00]} 8. exd5 {[%clk 0:03:02]}  O-O {[%clk 0:03:00]} 9. O-O {[%clk 0:03:02]}  cxd5 {[%clk 0:03:00]} 10. Qf3 {[%clk 0:03:00]}  Be6 {[%clk 0:03:00]} 11. h3 {[%clk 0:02:55]}  c5 {[%clk 0:02:56]} 12. Ne2 {[%clk 0:02:51]}  c4 {[%clk 0:02:44]} 13. Bf5 {[%clk 0:02:52]}  Qd7 {[%clk 0:02:44]} 14. Nd4 {[%clk 0:02:51]}  Bc5 {[%clk 0:02:39]} 15. Be3 {[%clk 0:02:42]}  Bb6 {[%clk 0:02:36]} 16. Rad1 {[%clk 0:02:39]}  Rae8 {[%clk 0:02:34]} 17. c3 {[%clk 0:02:37]}  Bxd4 {[%clk 0:02:30]} 18. Bxe6 {[%clk 0:02:37]}  fxe6 {[%clk 0:02:31]} 19. Bxd4 {[%clk 0:02:36]}  Ne4 {[%clk 0:02:24]} 20. Qe3 {[%clk 0:02:31]}  e5 {[%clk 0:02:16]} 21. Bxa7 {[%clk 0:02:26]}  Rf7 {[%clk 0:02:10]} 22. Bb6 {[%clk 0:02:22]}  Re6 {[%clk 0:02:03]} 23. a4 {[%clk 0:02:17]}  Rg6 {[%clk 0:02:00]} 24. a5 {[%clk 0:02:15]}  Ng5 {[%clk 0:01:55]} 25. Kh1 {[%clk 0:02:14]}  Rf3 {[%clk 0:01:51]} 26. Qxe5 {[%clk 0:02:14]}  Rxh3+ {[%clk 0:01:47]} 27. gxh3 {[%clk 0:02:13]}  Qxh3+ {[%clk 0:01:42]} 28. Qh2 {[%clk 0:02:14]}  Qf3+ {[%clk 0:01:38]} 29. Qg2 {[%clk 0:02:13]}  Rh6+ {[%clk 0:01:36]} 30. Kg1 {[%clk 0:02:14]}  Nh3+ {[%clk 0:01:29]} 31. Qxh3 {[%clk 0:02:13]}  Rxh3 {[%clk 0:01:29]} 32. Bc7 {[%clk 0:02:12]}  Rh1# {[%clk 0:01:28]} 0-1


[Site "https://www.chess.com"]

[Event "Titled Tuesday Blitz September 27 Late 2022"]
[White "Makarian, Rudik"]
[Black "Nozdrachev, Leonid"]
[WhiteFideId "44105681"]
[BlackFideId "24113433"]
[WhiteElo "2410"]
[BlackElo "2196"]
[Result "1-0"]
[Round "02"]
[TimeControl "180+1"]
[Date "2022.09.27"]
[WhiteClock "0:01:37"]
[BlackClock "0:00:01"]

1. d3 {[%clk 0:03:00]}  e5 {[%clk 0:02:54]} 2. Nf3 {[%clk 0:03:00]}  Nc6 {[%clk 0:02:54]} 3. c4 {[%clk 0:03:00]}  Nf6 {[%clk 0:02:48]} 4. a3 {[%clk 0:03:00]}  a5 {[%clk 0:02:45]} 5. e4 {[%clk 0:02:55]}  Bc5 {[%clk 0:02:41]} 6. Be2 {[%clk 0:02:52]}  d6 {[%clk 0:02:38]} 7. Nc3 {[%clk 0:02:51]}  Bg4 {[%clk 0:02:37]} 8. Be3 {[%clk 0:02:51]}  Bxf3 {[%clk 0:02:34]} 9. Bxf3 {[%clk 0:02:51]}  Nd4 {[%clk 0:02:32]} 10. O-O {[%clk 0:02:51]}  O-O {[%clk 0:02:28]} 11. Bg4 {[%clk 0:02:51]}  Nxg4 {[%clk 0:02:21]} 12. Qxg4 {[%clk 0:02:50]}  Nc2 {[%clk 0:02:16]} 13. Bg5 {[%clk 0:02:44]}  f6 {[%clk 0:01:42]} 14. Rac1 {[%clk 0:02:44]}  fxg5 {[%clk 0:01:21]} 15. Rxc2 {[%clk 0:02:43]}  c6 {[%clk 0:01:21]} 16. g3 {[%clk 0:02:43]}  Qf6 {[%clk 0:01:18]} 17. Kg2 {[%clk 0:02:41]}  h6 {[%clk 0:01:18]} 18. Na4 {[%clk 0:02:30]}  Bd4 {[%clk 0:01:16]} 19. Nc3 {[%clk 0:02:24]}  Kh7 {[%clk 0:01:15]} 20. Ne2 {[%clk 0:02:22]}  Bc5 {[%clk 0:01:13]} 21. Ng1 {[%clk 0:02:21]}  a4 {[%clk 0:01:10]} 22. Nf3 {[%clk 0:02:14]}  Rae8 {[%clk 0:01:08]} 23. h4 {[%clk 0:02:13]}  gxh4 {[%clk 0:01:05]} 24. Nxh4 {[%clk 0:02:14]}  Qe6 {[%clk 0:01:02]} 25. Qxe6 {[%clk 0:02:13]}  Rxe6 {[%clk 0:01:03]} 26. f4 {[%clk 0:02:10]}  exf4 {[%clk 0:00:51]} 27. gxf4 {[%clk 0:02:11]}  g6 {[%clk 0:00:50]} 28. f5 {[%clk 0:02:04]}  gxf5 {[%clk 0:00:47]} 29. Nxf5 {[%clk 0:02:02]}  Ref6 {[%clk 0:00:42]} 30. Rf3 {[%clk 0:01:58]}  b6 {[%clk 0:00:39]} 31. Rd2 {[%clk 0:01:57]}  b5 {[%clk 0:00:21]} 32. cxb5 {[%clk 0:01:49]}  cxb5 {[%clk 0:00:22]} 33. Rc2 {[%clk 0:01:49]}  Rg8+ {[%clk 0:00:16]} 34. Rg3 {[%clk 0:01:49]}  Rxg3+ {[%clk 0:00:15]} 35. Kxg3 {[%clk 0:01:50]}  h5 {[%clk 0:00:12]} 36. Kf4 {[%clk 0:01:50]}  Bd4 {[%clk 0:00:11]} 37. Kg5 {[%clk 0:01:50]}  Be5 {[%clk 0:00:09]} 38. Rc7+ {[%clk 0:01:46]}  Kg8 {[%clk 0:00:09]} 39. d4 {[%clk 0:01:46]}  Bxd4 {[%clk 0:00:06]} 40. Nxd4 {[%clk 0:01:45]}  Rf2 {[%clk 0:00:07]} 41. Nf5 {[%clk 0:01:45]}  Rxb2 {[%clk 0:00:03]} 42. Nxd6 {[%clk 0:01:39]}  b4 {[%clk 0:00:03]} 43. axb4 {[%clk 0:01:39]}  Rxb4 {[%clk 0:00:04]} 44. Ra7 {[%clk 0:01:39]}  Kf8 {[%clk 0:00:03]} 45. e5 {[%clk 0:01:39]}  h4 {[%clk 0:00:03]} 46. e6 {[%clk 0:01:39]}  h3 {[%clk 0:00:01]} 47. e7+ {[%clk 0:01:37]} 1-0


[Site "https://www.chess.com"]

[Event "Titled Tuesday Blitz September 27 Late 2022"]
[White "Martinez Alcantara, Jose Eduardo"]
[Black "Brodowski, Piotr"]
[WhiteFideId "3805662"]
[BlackFideId "1124480"]
[WhiteElo "2703"]
[BlackElo "2312"]
[Result "1-0"]
[Round "02"]
[TimeControl "180+1"]
[Date "2022.09.27"]
[WhiteClock "0:01:38"]
[BlackClock "0:00:02"]

1. e4 {[%clk 0:03:00]}  g6 {[%clk 0:02:53]} 2. d4 {[%clk 0:03:01]}  Bg7 {[%clk 0:02:54]} 3. c3 {[%clk 0:03:01]}  d6 {[%clk 0:02:54]} 4. Bd3 {[%clk 0:03:02]}  Nd7 {[%clk 0:02:49]} 5. Nf3 {[%clk 0:03:02]}  e5 {[%clk 0:02:47]} 6. O-O {[%clk 0:03:02]}  Ne7 {[%clk 0:02:45]} 7. Re1 {[%clk 0:03:02]}  O-O {[%clk 0:02:45]} 8. Nbd2 {[%clk 0:03:02]}  Nc6 {[%clk 0:02:40]} 9. Nb3 {[%clk 0:02:59]}  h6 {[%clk 0:02:34]} 10. h3 {[%clk 0:02:59]}  a5 {[%clk 0:02:30]} 11. a4 {[%clk 0:02:59]}  exd4 {[%clk 0:02:24]} 12. cxd4 {[%clk 0:02:57]}  Nb4 {[%clk 0:02:24]} 13. Bb1 {[%clk 0:02:58]}  Re8 {[%clk 0:02:10]} 14. Be3 {[%clk 0:02:55]}  c6 {[%clk 0:02:08]} 15. Nbd2 {[%clk 0:02:54]}  Nf6 {[%clk 0:02:00]} 16. Ra3 {[%clk 0:02:54]}  b6 {[%clk 0:01:57]} 17. e5 {[%clk 0:02:53]}  Nfd5 {[%clk 0:01:54]} 18. Ne4 {[%clk 0:02:52]}  dxe5 {[%clk 0:01:54]} 19. dxe5 {[%clk 0:02:51]}  Ba6 {[%clk 0:01:33]} 20. Bd2 {[%clk 0:02:46]}  Qc7 {[%clk 0:01:20]} 21. Nd6 {[%clk 0:02:45]}  Re6 {[%clk 0:01:16]} 22. Qc1 {[%clk 0:02:33]}  Kh7 {[%clk 0:01:07]} 23. Nf5 {[%clk 0:02:27]}  gxf5 {[%clk 0:00:56]} 24. Bxf5+ {[%clk 0:02:28]}  Rg6 {[%clk 0:00:55]} 25. h4 {[%clk 0:02:25]}  Ne7 {[%clk 0:00:38]} 26. Be4 {[%clk 0:02:20]}  Kg8 {[%clk 0:00:34]} 27. Bxg6 {[%clk 0:02:19]}  fxg6 {[%clk 0:00:29]} 28. Bxh6 {[%clk 0:02:20]}  Nd3 {[%clk 0:00:29]} 29. Rxd3 {[%clk 0:02:19]}  Bxd3 {[%clk 0:00:29]} 30. Bxg7 {[%clk 0:02:20]}  Kxg7 {[%clk 0:00:29]} 31. Qc3 {[%clk 0:02:13]}  Bf5 {[%clk 0:00:26]} 32. e6+ {[%clk 0:02:13]}  Kg8 {[%clk 0:00:25]} 33. Ng5 {[%clk 0:02:09]}  Nd5 {[%clk 0:00:24]} 34. Qc4 {[%clk 0:01:54]}  Qf4 {[%clk 0:00:10]} 35. Qxc6 {[%clk 0:01:52]}  Rd8 {[%clk 0:00:11]} 36. e7 {[%clk 0:01:42]}  Nxe7 {[%clk 0:00:10]} 37. Qf6 {[%clk 0:01:42]}  Qxh4 {[%clk 0:00:02]} 38. Qf7+ {[%clk 0:01:38]}  Kh8 {[%clk 0:00:02]} 39. Qxe7 {[%clk 0:01:38]} 1-0


[Site "https://www.chess.com"]